bitfinex/quotes_ETHUSD_20240823
["timestamp","ask_amount","ask_price","bid_price","bid_amount"]
[1724419689108,3.75321,2664.4,2664.0,0.11845109]
[1724419689759,3.75321,2664.4,2664.1,2.3331]
[1724419690194,3.75321,2664.4,2664.2,0.11823144]
[1724419690998,7.50652,2664.4,2664.2,0.11823144]
[1724419691162,3.75321,2664.4,2664.2,0.11823144]
[1724419692212,11.38557505,2664.3,2664.2,0.11823144]
[1724419692360,15.13890505,2664.3,2664.2,0.11823144]
[1724419692693,3.75415,2663.8,2663.5,9.7945]
[1724419692901,3.7535,2664.2,2663.2,2.3045]
[1724419692902,3.75431,2663.6,2663.2,2.3045]
[1724419693133,3.75367,2664.1,2663.1,7.49]
[1724419693134,1.58521505,2663.3,2663.1,7.49]
[1724419693285,1.58521505,2663.3,2662.7,6.06002]
[1724419693627,3.75488,2663.2,2662.7,6.06002]
[1724419693832,7.50939,2663.4,2662.7,6.05998]
[1724419694130,3.75468,2663.4,2662.8,3.75542]
[1724419694585,3.75439,2663.6,2663.0,3.75512]
[1724419695166,7.50879,2663.6,2663.0,3.75512]
[1724419695408,3.75439,2663.6,2663.0,3.75508]
[1724419695610,3.75439,2663.6,2663.0,5.34029505]
[1724419695781,3.75439,2663.6,2663.2,1.58521505]
[1724419695989,3.75439,2663.6,2663.0,5.34027505]
[1724419696572,7.5088,2663.6,2663.0,5.34027505]
[1724419696814,7.5088,2663.6,2663.0,3.75506]
[1724419697634,3.75439,2663.6,2663.0,7.51014]
[1724419698717,3.75439,2663.6,2663.0,7.51013]
[1724419698896,7.5088,2663.6,2663.0,3.75506]
[1724419699091,3.75439,2663.6,2663.0,3.75506]
[1724419699298,7.5088,2663.6,2663.0,3.75506]
[1724419699494,3.75446,2663.5,2663.0,3.75506]
[1724419699680,5.33967505,2663.5,2662.9,6.07979]
[1724419700318,1.58521505,2663.3,2662.8,3.75536]
[1724419700885,3.75491,2663.2,2662.6,6.18814]
[1724419701092,3.75491,2663.2,2662.6,9.94379]
[1724419701501,3.75491,2663.2,2662.7,3.75554]
[1724419702095,3.75491,2663.2,2662.8,0.12051957]
[1724419702289,3.75491,2663.2,2662.7,3.75554]
[1724419702629,3.75491,2663.2,2662.9,0.12045132]
[1724419702827,3.75491,2663.2,2662.8,0.1205672]
[1724419703129,3.75491,2663.2,2662.7,3.75554]
[1724419703330,3.75491,2663.2,2662.9,0.12045132]
[1724419703492,3.75491,2663.2,2662.7,3.75554]
[1724419704361,3.75467,2663.4,2662.8,3.8759972]
[1724419705189,3.75467,2663.4,2662.8,7.6313672]
[1724419705692,3.75475,2663.3,2662.8,3.8759372]
[1724419705931,3.75467,2663.4,2662.8,7.6312772]
[1724419707431,3.75449,2663.5,2663.0,3.75507]
[1724419707634,3.75449,2663.5,2663.0,6.10177]
[1724419707800,3.75449,2663.5,2663.1,0.12020371]
[1724419708185,7.50906,2663.5,2663.1,0.12020371]
[1724419709752,3.7546,2663.4,2663.1,0.12020371]
[1724419714079,3.7046,2663.4,2663.1,0.12020371]
[1724419714448,3.75449,2663.5,2663.1,0.12020371]
[1724419714752,7.50906,2663.5,2663.1,0.12020371]
[1724419715145,3.75449,2663.5,2663.1,0.12020371]
[1724419715364,7.50904,2663.5,2663.1,0.12020371]
[1724419716810,3.75461,2663.4,2663.1,0.12020371]
[1724419717504,3.75449,2663.5,2663.1,0.12020371]
[1724419719496,3.75432,2663.6,2663.1,0.12020371]
[1724419719706,7.50875,2663.6,2663.2,2.2683]
[1724419720009,3.75447,2663.5,2663.2,2.38841963]
[1724419724528,7.50849,2663.7,2663.2,2.38841963]
[1724419724727,3.75436,2663.6,2663.2,2.38841963]
[1724419725672,3.75399,2663.9,2663.2,2.38841963]
[1724419725943,3.7537,2664.1,2663.6,3.75422]
[1724419726238,3.75377,2664.0,2663.4,6.19738]
[1724419726437,3.75377,2664.0,2663.7,0.11942932]
[1724419726635,3.75377,2664.0,2663.5,3.75442]
[1724419726838,3.75377,2664.0,2663.8,0.11931352]
[1724419727143,5.33971745,2664.0,2663.5,3.75442]
[1724419727319,5.33971745,2664.0,2663.9,0.11919772]
[1724419727639,5.33971745,2664.0,2663.5,3.75442]
[1724419727813,5.33971745,2664.0,2663.9,0.11919772]
[1724419728001,5.33971745,2664.0,2663.5,3.75442]
[1724419728200,5.33971745,2664.0,2663.9,0.1190747]
[1724419728405,5.33971745,2664.0,2663.5,3.75442]
[1724419728613,5.33971745,2664.0,2663.9,0.1190747]
[1724419728849,5.33971745,2664.0,2663.5,3.75442]
[1724419729042,5.33971745,2664.0,2663.9,0.1190747]
[1724419729343,5.33971745,2664.0,2663.4,6.19738]
[1724419729659,3.75391,2663.9,2663.4,6.19738]
[1724419731130,3.75391,2663.9,2663.4,9.95191]
[1724419731302,3.75391,2663.9,2663.4,6.19738]
[1724419731505,3.75391,2663.9,2663.5,3.75444]
[1724419732200,3.75391,2663.9,2663.6,0.11941021]
[1724419733040,3.75375,2664.0,2663.6,0.11941021]
[1724419733210,3.75391,2663.9,2663.6,0.11941021]
[1724419733619,3.75391,2663.9,2663.4,6.19748]
[1724419734152,3.7537,2664.1,2663.5,0.11953396]
[1724419734468,3.7537,2664.1,2663.6,3.75431]
[1724419734645,3.7537,2664.1,2663.5,0.11953396]
[1724419734646,3.75382,2664.0,2663.5,0.11953396]
[1724419735237,3.75382,2664.0,2663.5,3.87396396]
[1724419738690,3.75382,2664.0,2663.6,3.75428]
[1724419739007,3.75382,2664.0,2663.7,0.11913966]
[1724419741275,6.2388,2664.2,2663.7,0.11913966]
[1724419741478,3.75369,2664.1,2663.7,0.11913966]
[1724419743049,5.33963745,2664.1,2663.7,0.11913966]
[1724419751115,5.33963745,2664.1,2663.7,3.87330966]
[1724419751116,3.75369,2664.1,2663.7,3.87330966]
[1724419752022,3.75334,2664.3,2663.8,2.4938]
[1724419752219,3.75355,2664.2,2663.8,2.4938]
[1724419752394,3.75355,2664.2,2663.8,2.61276828]
[1724419754132,3.75361,2664.1,2663.8,2.61276828]
[1724419760383,2.3288,2664.4,2663.8,6.36666828]
[1724419760557,4.34166865,2664.6,2664.2,2.2784]
[1724419760745,3.75277,2664.7,2664.2,6.03185]
[1724419760946,3.75294,2664.6,2664.3,0.11830212]
[1724419761749,3.75294,2664.6,2664.4,0.11818637]
[1724419761985,3.75294,2664.6,2664.2,2.2784]
[1724419762247,3.75294,2664.6,2664.3,0.11830212]
[1724419762648,3.75294,2664.6,2664.2,2.2784]
[1724419762900,3.75294,2664.6,2664.4,0.11818637]
[1724419763101,3.75294,2664.6,2664.3,0.11830212]
[1724419763403,3.75294,2664.6,2664.4,0.11818637]
[1724419763547,3.75294,2664.6,2664.2,2.2784]
[1724419763748,3.75294,2664.6,2664.3,0.11830212]
[1724419763991,3.75294,2664.6,2664.2,2.2784]
[1724419764201,3.75294,2664.6,2664.3,0.11830212]
[1724419764382,3.75294,2664.6,2664.2,2.2784]
[1724419764591,3.75294,2664.6,2664.3,0.11830212]
[1724419764771,3.75294,2664.6,2664.2,2.2784]
[1724419764978,3.75294,2664.6,2664.3,0.11816328]
[1724419765159,3.75294,2664.6,2664.2,2.2784]
[1724419765474,3.75294,2664.6,2664.3,0.11816328]
[1724419765879,3.75294,2664.6,2664.2,2.2784]
[1724419766187,3.75294,2664.6,2664.3,0.11816328]
[1724419766390,3.75294,2664.6,2664.2,2.2784]
[1724419766690,3.75294,2664.6,2664.3,0.11816328]
[1724419767089,3.75294,2664.6,2664.2,2.2784]
[1724419767386,3.75294,2664.6,2664.4,0.1180277]
[1724419767593,3.75294,2664.6,2664.3,0.11814345]
[1724419767952,3.75294,2664.6,2664.2,2.2784]
[1724419768156,3.75294,2664.6,2664.4,0.1180277]
[1724419768381,3.75294,2664.6,2664.2,2.2784]
[1724419768566,3.75294,2664.6,2664.5,0.11791196]
[1724419769557,3.75294,2664.6,2664.2,2.2784]
[1724419770499,3.75294,2664.6,2664.3,0.11814345]
[1724419770852,3.75294,2664.6,2664.2,2.2784]
[1724419771049,3.75294,2664.6,2664.4,0.1180277]
[1724419771267,3.75294,2664.6,2664.3,0.11814345]
[1724419771598,3.75294,2664.6,2664.4,0.1180277]
[1724419771893,3.75294,2664.6,2664.2,2.2784]
[1724419772051,3.75294,2664.6,2664.5,0.11791196]
[1724419772255,3.75294,2664.6,2664.2,2.2784]
[1724419772467,3.75294,2664.6,2664.5,0.11772949]
[1724419772795,3.75294,2664.6,2664.2,2.2784]
[1724419772972,3.75294,2664.6,2664.5,0.11772949]
[1724419773176,3.75294,2664.6,2664.2,2.2784]
[1724419773360,3.75294,2664.6,2664.5,0.11772949]
[1724419773559,3.75294,2664.6,2664.2,2.2784]
[1724419773789,3.75294,2664.6,2664.5,0.11772949]
[1724419773996,3.75294,2664.6,2664.2,2.2784]
[1724419774189,5.33901745,2664.5,2664.2,2.2784]
[1724419774398,1.58594745,2664.5,2664.0,3.75374]
[1724419774569,3.75294,2664.6,2664.0,6.01044]
[1724419774766,3.75294,2664.6,2664.1,3.75358]
[1724419777302,3.75294,2664.6,2664.2,0.11807675]
[1724419781196,3.75294,2664.6,2664.3,2.4954]
[1724419781391,3.75294,2664.6,2664.3,2.61336495]
[1724419782012,3.7522,2665.1,2664.4,2.4658]
[1724419782322,3.74988,2666.8,2664.4,2.4658]
[1724419782323,3.75298,2664.6,2664.4,0.11785714]
[1724419782495,3.75304,2664.5,2664.4,0.11785714]
[1724419782695,5.33892745,2664.6,2664.0,2.3663]
[1724419782696,3.75319,2664.4,2664.0,2.3663]
[1724419782904,1.58594745,2664.3,2664.0,2.3663]
[1724419783132,5.33927745,2664.3,2664.0,2.3663]
[1724419783847,5.33927745,2664.3,2663.2,0.93984518]
[1724419783848,3.75425,2663.7,2663.2,2.4695]
[1724419784132,1.58594745,2663.5,2663.2,2.4695]
[1724419784290,1.58594745,2663.3,2663.1,1.0]
[1724419784831,0.07487018,2663.6,2663.1,1.0]
[1724419784832,3.75434,2663.6,2663.1,1.0]
[1724419785034,3.75419,2663.7,2663.1,4.75491]
[1724419785328,5.33999745,2663.8,2663.2,3.75479]
[1724419785624,5.33999745,2663.8,2663.1,4.75491]
[1724419785625,5.33999745,2663.8,2663.3,6.15913]
[1724419786127,9.09411745,2663.8,2663.3,6.15913]
[1724419786426,9.09412745,2663.8,2663.3,6.15913]
[1724419786627,9.09411745,2663.8,2663.3,2.4045]
[1724419787265,3.75418,2663.7,2663.3,2.4045]
[1724419787566,3.7542,2663.7,2663.3,2.4045]
[1724419789513,7.50845,2663.7,2663.3,2.4045]
[1724419789711,7.50848,2663.7,2663.3,2.4045]
[1724419789936,3.7542,2663.7,2663.3,2.4045]
[1724419790234,7.50846,2663.7,2663.3,2.4045]
[1724419790409,7.50849,2663.7,2663.2,3.7548]
[1724419790775,3.75431,2663.6,2663.2,3.7548]
[1724419791043,3.75431,2663.6,2663.1,3.427]
[1724419791350,3.75431,2663.6,2663.1,7.18199]
[1724419791875,3.75431,2663.6,2663.1,3.427]
[1724419791876,3.75448,2663.5,2663.1,3.427]
[1724419792005,5.34063745,2663.4,2663.2,0.11923879]
[1724419792508,3.75474,2663.3,2663.2,0.11923879]
[1724419793128,10.82987901,2663.3,2663.2,0.11923879]
[1724419793665,10.82987901,2663.3,2663.1,1.0]
[1724419793666,7.50976,2663.2,2663.1,1.0]
[1724419793874,9.09570745,2663.2,2663.1,1.0]
[1724419795165,5.34082745,2663.2,2663.1,1.0]
[1724419795475,3.75474,2663.3,2663.1,1.0]
[1724419795859,7.50958,2663.3,2663.1,1.0]
[1724419796162,1.58594745,2663.4,2663.1,1.0]
[1724419796163,3.75463,2663.4,2663.1,1.0]
[1724419797570,5.34057745,2663.4,2663.1,1.0]
[1724419797735,3.75475,2663.3,2663.1,1.0]
[1724419798625,1.58594745,2663.2,2663.1,1.0]
[1724419799338,5.34057745,2663.4,2663.1,1.0]
[1724419799620,3.75463,2663.4,2663.1,1.0]
[1724419800438,3.7538,2664.0,2663.1,1.0]
[1724419800439,3.75392,2663.9,2663.2,6.08698]
[1724419800728,5.34014745,2663.7,2663.2,6.08698]
[1724419800935,5.34050745,2663.5,2663.1,1.0]
[1724419801440,7.50928,2663.4,2663.1,1.0]
[1724419801729,1.58594745,2663.3,2663.1,1.0]
[1724419802933,5.34069745,2663.3,2663.1,1.0]
[1724419803074,1.58594745,2663.3,2663.1,1.0]
[1724419803270,3.7544,2663.6,2663.1,1.0]
[1724419803474,6.05171,2663.8,2663.2,3.75483]
[1724419803475,5.34015745,2663.7,2663.2,3.75483]
[1724419803674,3.75421,2663.7,2663.2,3.75483]
[1724419803924,9.09388745,2663.9,2663.2,3.75478]
[1724419804235,3.75406,2663.8,2663.2,3.75478]
[1724419804438,5.34014745,2663.7,2663.2,3.75478]
[1724419804641,5.34014745,2663.7,2663.1,3.4819]
[1724419805491,2.2976,2664.0,2663.1,3.4819]
[1724419805492,1.58594745,2663.5,2663.1,3.4819]
[1724419805693,3.75488,2663.2,2663.1,1.0]
[1724419805893,13.74524,2663.2,2663.1,1.0]
[1724419808521,17.5546477,2663.2,2663.1,1.0]
[1724419808798,11.74582477,2663.2,2663.1,1.0]
[1724419808993,9.99036,2663.2,2663.1,1.0]
[1724419811220,13.74524,2663.2,2663.1,1.0]
[1724419811419,9.99036,2663.2,2663.1,1.0]
[1724419811826,13.74524,2663.2,2663.1,1.0]
[1724419814142,17.50012,2663.2,2663.1,1.0]
[1724419814307,16.80165577,2663.2,2663.1,1.0]
[1724419815543,20.61106347,2663.2,2663.1,1.0]
[1724419816142,16.30618347,2663.2,2663.1,1.0]
[1724419816450,9.99036,2663.2,2663.1,1.0]
[1724419817319,3.75488,2663.2,2663.1,1.0]
[1724419817486,3.75469,2663.4,2663.1,1.0]
[1724419817796,3.75488,2663.2,2663.1,1.0]
[1724419818486,7.50976,2663.2,2663.1,1.0]
[1724419821284,6.7538,2664.0,2663.1,1.0]
[1724419821285,2.3888,2663.9,2663.1,1.0]
[1724419821495,3.75441,2663.6,2663.1,3.3068]
[1724419821629,3.75488,2663.2,2663.1,1.0]
[1724419821832,7.50976,2663.2,2663.1,1.0]
[1724419822683,7.58463018,2663.2,2663.1,1.0]
[1724419822979,11.33951018,2663.2,2663.1,1.0]
[1724419823494,11.26464,2663.2,2663.1,1.0]
[1724419823632,13.01429477,2663.2,2663.1,1.0]
[1724419823838,15.39979477,2663.2,2663.1,1.0]
[1724419824283,3.75666,2662.0,2661.4,6.22261]
[1724419824585,3.75666,2662.0,2660.9,2.4255]
[1724419824586,3.75752,2661.4,2660.9,2.4255]
[1724419824801,3.75766,2661.3,2660.9,2.4255]
[1724419824954,3.75771,2661.2,2660.9,2.4255]
[1724419825131,3.75809,2661.0,2660.4,2.5555149]
[1724419825331,3.75824,2660.9,2660.4,2.5555149]
[1724419825535,3.8094077,2661.3,2660.4,2.5555149]
[1724419825536,3.83286018,2661.0,2660.4,2.5555149]
[1724419826290,3.75799,2661.0,2660.4,2.5555149]
[1724419826963,2.3421,2661.5,2660.4,2.5555149]
[1724419826964,3.75744,2661.4,2660.4,2.5555149]
[1724419827144,3.8094077,2661.6,2660.4,2.5555149]
[1724419827145,3.75715,2661.6,2660.6,3.75853]
[1724419827350,3.75715,2661.6,2660.9,3.75809]
[1724419827547,3.751311,2661.9,2661.0,2.3458]
[1724419827548,3.757,2661.7,2661.0,2.3458]
[1724419828436,3.757,2661.7,2661.0,6.10376]
[1724419829472,3.757,2661.7,2661.1,0.12256541]
[1724419830496,3.7577,2661.2,2661.1,0.12256541]
[1724419830695,4.13347,2661.2,2660.7,2.3432]
[1724419830881,3.75757,2661.3,2660.8,0.12291355]
[1724419830882,3.75786,2661.1,2660.8,0.12291355]
[1724419831051,3.75757,2661.3,2660.8,0.12291355]
[1724419831255,3.7577,2661.2,2660.8,0.12291355]
[1724419832281,3.75779,2661.2,2660.8,0.12291355]
[1724419833796,3.75799,2661.0,2660.8,0.12291355]
[1724419834003,3.75812,2660.9,2660.8,0.12291355]
[1724419834370,3.75799,2661.0,2660.4,2.5363149]
[1724419834574,3.75799,2661.0,2660.4,6.2950449]
[1724419834890,3.75775,2661.2,2660.6,3.75848]
[1724419835199,3.75775,2661.2,2660.7,0.12381635]
[1724419835770,3.75785,2661.1,2660.7,0.12381635]
[1724419836415,3.75785,2661.1,2660.4,2.5363149]
[1724419836620,3.75785,2661.1,2660.8,0.11957891]
[1724419836817,4.509271,2661.2,2660.5,3.75858]
[1724419837094,3.75748,2661.4,2661.0,2.3232]
[1724419837095,3.75749,2661.4,2661.0,2.3232]
[1724419837337,7.51504,2661.4,2661.0,2.3232]
[1724419837860,3.75756,2661.3,2661.1,0.11945742]
[1724419839150,3.75722,2661.6,2661.1,0.11945742]
[1724419839711,3.75722,2661.6,2661.1,3.87727742]
[1724419839930,3.75722,2661.6,2661.1,0.11945742]
[1724419840145,3.75731,2661.5,2661.1,0.11945742]
[1724419841458,3.75722,2661.6,2661.1,0.11945742]
[1724419841946,7.51445,2661.6,2661.1,0.11945742]
[1724419842471,3.75722,2661.6,2661.1,0.11945742]
[1724419843236,4.34595078,2662.0,2661.2,3.83273357]
[1724419843411,5.2594,2662.3,2661.3,6.22478]
[1724419843412,3.75627,2662.3,2661.3,6.22478]
[1724419843760,3.75684,2661.9,2661.3,2.58637825]
[1724419843913,3.75715,2661.6,2661.3,2.58637825]
[1724419844743,3.75715,2661.6,2661.4,0.11896224]
[1724419844894,3.75702,2661.7,2661.4,0.11896224]
[1724419845097,3.75727,2661.5,2661.4,0.11896224]
[1724419845551,3.75727,2661.5,2661.0,5.485]
[1724419845734,3.75727,2661.5,2661.4,0.11896224]
[1724419846042,3.75743,2661.4,2661.0,5.485]
[1724419846244,3.75718,2661.6,2661.0,5.485]
[1724419846412,3.75736,2661.5,2661.1,0.1193103]
[1724419847302,3.75757,2661.3,2661.1,0.1193103]
[1724419847542,3.75736,2661.5,2661.1,0.1193103]
[1724419848959,3.75769,2661.3,2661.1,0.1193103]
[1724419849146,7.5154,2661.2,2661.1,0.1193103]
[1724419849348,7.5154,2661.2,2660.7,2.3264]
[1724419849349,3.75784,2661.1,2660.7,2.3264]
[1724419851860,7.51532,2661.3,2660.7,6.08479]
[1724419852046,4.14058302,2661.5,2660.8,3.75825]
[1724419852246,3.75721,2661.6,2661.0,3.75784]
[1724419852553,3.75721,2661.6,2661.1,2.4082]
[1724419853560,3.75707,2661.7,2661.1,6.16603]
[1724419853744,3.75707,2661.7,2661.2,3.75766]
[1724419853939,3.75679,2661.9,2661.2,3.75766]
[1724419853940,7.5136,2661.9,2661.3,3.75752]
[1724419854250,3.75686,2661.8,2661.3,3.75752]
[1724419854451,3.75686,2661.8,2661.2,3.75766]
[1724419854654,3.75679,2661.9,2661.2,3.75762]
[1724419854655,3.75702,2661.7,2661.2,3.75762]
[1724419855257,7.5141,2661.7,2661.2,3.75762]
[1724419855569,3.75702,2661.7,2661.2,3.75762]
[1724419856386,7.51362,2661.9,2661.3,3.75755]
[1724419856535,3.75693,2661.8,2661.2,3.75762]
[1724419857087,3.75679,2661.9,2661.2,3.75762]
[1724419857088,3.75702,2661.7,2661.2,3.75762]
[1724419857893,7.5141,2661.7,2661.2,3.75762]
[1724419858542,3.75702,2661.7,2661.2,3.75762]
[1724419859360,3.75724,2661.6,2661.1,6.16603]
[1724419859566,3.75724,2661.6,2661.3,0.11872074]
[1724419859736,3.75724,2661.6,2661.1,6.16603]
[1724419859737,3.75724,2661.6,2661.2,0.11883676]
[1724419861083,3.75756,2661.3,2661.2,0.11883676]
[1724419861299,7.51512,2661.3,2661.2,0.11883676]
[1724419861436,3.758,2661.0,2660.5,6.14277]
[1724419862349,3.7578,2661.2,2660.6,3.75846]
[1724419862665,3.75793,2661.1,2660.7,3.0]
[1724419864872,3.75743,2661.4,2660.8,3.75812]
[1724419865184,3.75743,2661.4,2660.9,2.3074]
[1724419865392,3.75736,2661.5,2660.9,2.3074]
[1724419865393,3.75758,2661.3,2660.9,2.3074]
[1724419865858,7.51523,2661.3,2660.9,2.3074]
[1724419866041,8.266753,2661.3,2660.9,2.3074]
[1724419866245,8.266773,2661.3,2660.9,2.3074]
[1724419866861,4.509103,2661.3,2660.9,2.3074]
[1724419867094,8.266733,2661.3,2660.9,2.3074]
[1724419867288,4.509103,2661.3,2660.9,2.3074]
[1724419867591,3.75798,2661.0,2660.6,2.4891]
[1724419867992,0.4509103,2661.2,2660.6,6.24763]
[1724419867993,4.2087403,2661.2,2660.6,6.24763]
[1724419868160,3.75783,2661.2,2660.6,6.24763]
[1724419868501,3.75783,2661.2,2660.6,10.00611]
[1724419868850,3.75783,2661.2,2660.7,3.7584]
[1724419869055,3.75787,2661.1,2660.6,2.4891]
[1724419869598,3.75799,2661.0,2660.6,2.4891]
[1724419869803,3.75814,2660.9,2660.5,3.0]
[1724419870345,3.75863,2660.6,2660.4,0.1300149]
[1724419870601,7.59225018,2660.5,2660.4,0.1300149]
[1724419870799,15.16034788,2660.5,2660.4,0.1300149]
[1724419871004,16.91923267,2660.5,2660.4,0.1300149]
[1724419871380,19.29173267,2660.5,2660.4,0.1300149]
[1724419871864,19.29173267,2660.5,2659.0,2.4879]
[1724419871865,6.19316267,2660.5,2659.0,2.4879]
[1724419872066,6.19316267,2660.5,2658.5,2.2895]
[1724419872067,3.76104,2658.9,2658.5,2.2895]
[1724419872271,3.76104,2658.9,2658.1,3.76202]
[1724419872272,3.8094077,2658.9,2658.2,2.2895]
[1724419872487,3.76078,2659.1,2658.2,2.2895]
[1724419872669,3.76081,2659.0,2658.4,3.76161]
[1724419872855,3.76081,2659.0,2658.3,3.76169]
[1724419873297,3.76081,2659.0,2658.4,3.76162]
[1724419874674,3.76081,2659.0,2658.5,0.11991887]
[1724419874999,3.76056,2659.2,2658.6,3.76127]
[1724419875205,3.76056,2659.2,2658.7,2.4921]
[1724419875373,3.76056,2659.2,2658.7,2.61178636]
[1724419876608,4.741396,2659.2,2658.7,2.61178636]
[1724419876810,6.0478,2659.4,2658.7,6.37300636]
[1724419877010,3.76039,2659.3,2658.7,2.61178636]
[1724419877663,3.76054,2659.2,2658.7,2.61178636]
[1724419878813,3.7603,2659.4,2658.8,3.83630951]
[1724419879129,3.76003,2659.6,2659.0,3.76079]
[1724419879422,3.75975,2659.8,2659.1,0.19507868]
[1724419879555,3.75986,2659.7,2659.1,3.88044422]
[1724419879758,3.75997,2659.6,2659.1,3.88044422]
[1724419881935,3.75975,2659.8,2659.1,3.88044422]
[1724419882156,7.51953,2659.8,2659.2,3.76051]
[1724419882418,7.51955,2659.8,2659.3,0.11947457]
[1724419882635,7.51952,2659.8,2659.3,0.11947457]
[1724419882796,3.75948,2660.0,2659.4,3.76016]
[1724419883001,3.75948,2660.0,2659.5,2.4528]
[1724419883193,0.23392,2660.1,2659.4,0.12002285]
[1724419883194,3.7599,2659.7,2659.4,0.12002285]
[1724419883534,3.75969,2659.8,2659.6,0.11978652]
[1724419883700,3.75969,2659.8,2659.5,0.11990269]
[1724419883896,3.75982,2659.7,2659.6,0.11978652]
[1724419884732,3.75982,2659.7,2659.1,6.21345]
[1724419884906,3.75982,2659.7,2659.6,0.11978652]
[1724419885531,3.76004,2659.6,2659.1,2.4528]
[1724419885844,3.76004,2659.6,2659.1,5.4528]
[1724419886440,3.76032,2659.4,2659.1,3.0]
[1724419886591,3.76032,2659.4,2658.9,9.24465]
[1724419886995,3.76032,2659.4,2658.9,5.4837]
[1724419887190,4.512363,2659.4,2658.9,5.4837]
[1724419887393,4.512363,2659.4,2658.9,2.4837]
[1724419887638,0.752043,2659.4,2658.9,6.24454]
[1724419887932,4.512283,2659.4,2659.0,3.0]
[1724419889560,4.512283,2659.4,2659.1,0.12036746]
[1724419890091,0.752043,2659.4,2659.1,0.12036746]
[1724419890386,3.76052,2659.2,2659.1,0.12036746]
[1724419890699,3.76036,2659.4,2659.1,0.12036746]
[1724419890915,6.20862,2659.6,2659.1,3.76064]
[1724419890916,2.4486,2659.6,2659.1,3.76064]
[1724419891189,3.75983,2659.7,2659.2,0.12025125]
[1724419891396,4.135803,2659.7,2659.2,0.12025125]
[1724419891691,6.1907,2660.2,2659.2,0.12025125]
[1724419891909,6.1907,2660.2,2659.5,6.09054]
[1724419892048,6.1907,2660.2,2659.5,2.3305]
[1724419892390,3.7594,2660.0,2659.6,0.11984227]
[1724419892798,6.1907,2660.2,2659.6,0.11984227]
[1724419892979,3.7587,2660.5,2659.8,3.75956]
[1724419893154,3.75886,2660.4,2659.9,2.39968983]
[1724419893348,2.4128,2660.6,2659.9,0.11948983]
[1724419893658,3.75955,2659.9,2659.7,3.0]
[1724419893872,3.75955,2659.9,2659.3,5.2914]
[1724419894042,3.75955,2659.9,2659.3,9.05169]
[1724419894245,3.75955,2659.9,2659.3,5.2914]
[1724419894448,3.7593,2660.1,2659.3,5.2914]
[1724419894647,3.7593,2660.1,2659.4,6.76011]
[1724419895089,2.3639,2659.9,2659.1,6.76064]
[1724419895293,3.75991,2659.7,2659.1,6.76057]
[1724419895492,3.75941,2660.0,2659.4,3.76023]
[1724419895647,6.12321,2660.1,2659.2,6.24064]
[1724419895648,3.75956,2659.9,2659.2,6.24064]
[1724419895854,3.75956,2659.9,2659.3,6.7603]
[1724419896193,3.75931,2660.1,2659.5,3.76008]
[1724419897589,3.75901,2660.3,2659.6,6.04654]
[1724419898287,3.7587,2660.5,2659.7,3.0]
[1724419898488,2.4195,2660.7,2659.7,3.0]
[1724419898647,3.75926,2660.1,2659.6,2.2867]
[1724419899312,7.51862,2660.1,2659.6,2.2867]
[1724419899450,3.75968,2659.9,2659.6,2.2867]
[1724419900489,7.51864,2660.1,2659.6,2.2867]
[1724419900724,3.75905,2660.3,2659.6,2.2867]
[1724419900872,3.75911,2660.2,2659.6,2.2867]
[1724419901073,3.75905,2660.3,2659.6,2.2867]
[1724419901267,3.75905,2660.3,2659.6,6.04657]
[1724419901268,3.75919,2660.2,2659.6,6.04657]
[1724419901582,3.75905,2660.3,2659.6,6.04657]
[1724419901807,3.75921,2660.2,2659.6,6.04657]
[1724419902026,3.75905,2660.3,2659.7,3.75978]
[1724419902169,3.75875,2660.5,2659.8,2.4072]
[1724419902369,3.75892,2660.4,2659.8,6.16683]
[1724419902995,3.75892,2660.4,2659.8,2.4072]
[1724419903409,3.75892,2660.4,2659.8,6.16687]
[1724419903611,3.75897,2660.3,2659.8,2.4072]
[1724419904204,7.51803,2660.3,2659.8,2.4072]
[1724419904520,3.75923,2660.2,2659.8,2.4072]
[1724419905013,3.75923,2660.2,2659.9,0.1151916]
[1724419905794,3.75878,2660.5,2659.9,0.1151916]
[1724419905994,3.75898,2660.3,2659.9,0.1151916]
[1724419906193,6.0514,2661.2,2659.9,0.1151916]
[1724419906517,6.0514,2661.2,2660.2,3.75903]
[1724419906518,3.75829,2660.8,2660.2,3.75903]
[1724419906718,3.75829,2660.8,2660.3,5.36506779]
[1724419906872,3.75829,2660.8,2660.3,5.40460729]
[1724419907076,3.75851,2660.7,2660.3,5.40460729]
[1724419907277,2.88306386,2661.4,2660.3,5.40460729]
[1724419907278,3.75859,2660.6,2660.3,5.40460729]
[1724419907478,3.75859,2660.6,2660.3,2.40460729]
[1724419907714,3.75859,2660.6,2659.8,3.75959]
[1724419907715,3.75883,2660.4,2660.0,5.2595]
[1724419907934,3.75859,2660.6,2660.0,6.01882]
[1724419908109,3.75859,2660.6,2660.1,3.0]
[1724419908956,7.51724,2660.6,2660.1,3.0]
[1724419909250,3.7579,2661.1,2660.1,6.75913]
[1724419909528,3.75873,2660.5,2660.1,3.0]
[1724419909696,3.75873,2660.5,2660.0,5.2595]
[1724419909902,3.75893,2660.4,2660.0,2.2595]
[1724419910098,3.7587,2660.5,2660.0,2.2595]
[1724419910421,4.38203,2660.5,2660.0,2.2595]
[1724419910923,3.75886,2660.4,2660.0,2.2595]
[1724419911231,3.75906,2660.3,2659.9,3.0]
[1724419911383,3.75906,2660.3,2659.8,6.75965]
[1724419911723,4.3821,2660.5,2659.8,10.51925]
[1724419911883,4.3821,2660.5,2659.9,3.75953]
[1724419912081,3.75898,2660.3,2660.0,3.0]
[1724419912312,3.75898,2660.3,2659.9,3.0]
[1724419912784,8.14092,2660.5,2659.9,3.0]